fUSD/lending_fUSD_20260202
["ID","MTS","AMOUNT","RATE_DAILY","PERIOD"]
[404300160,1770047441459,-773.23,0.00015274,2]
[404300161,1770047441468,-1600.0,0.00015277,2]
[404300162,1770047441477,-500.0,0.00015297,2]
[404300163,1770047441487,-500.0,0.00015297,2]
[404300164,1770047441496,-500.0,0.00015297,2]
[404300165,1770047441506,-500.0,0.00015297,2]
[404300166,1770047441516,-500.0,0.00015297,2]
[404300167,1770047441525,-500.0,0.00015297,2]
[404300168,1770047441535,-500.0,0.00015297,2]
[404300169,1770047441548,-500.0,0.00015297,2]
[404300170,1770047441559,-500.0,0.00015297,2]
[404300171,1770047441568,-500.0,0.00015297,2]
[404300172,1770047441578,-599.45758989,0.00015297,2]
[404300173,1770047441587,-500.0,0.00015297,2]
[404300174,1770047441596,-500.0,0.00015297,2]
[404300175,1770047441605,-500.0,0.00015297,2]
[404300176,1770047441615,-500.0,0.00015297,2]
[404300177,1770047441624,-500.0,0.00015297,2]
[404300178,1770047441633,-500.0,0.00015297,2]
[404300179,1770047441643,-500.0,0.00015297,2]
[404300180,1770047441652,-500.0,0.00015297,2]
[404300181,1770047441661,-500.0,0.00015297,2]
[404300182,1770047441671,-500.0,0.00015297,2]
[404300183,1770047441680,-624.9546901,0.00015297,2]
[404300184,1770047441689,-500.0,0.00015297,2]
[404300185,1770047441698,-361.84220614,0.00015297,2]
[404300186,1770047441707,-500.0,0.00015297,2]
[404300187,1770047441716,-520.9392261,0.00015297,2]
[404300188,1770047441725,-500.0,0.00015297,2]
[404300189,1770047441734,-500.0,0.00015297,2]
[404300190,1770047441743,-500.0,0.00015297,2]
[404300191,1770047441752,-500.0,0.00015297,2]
[404300192,1770047441761,-507.04117268,0.00015297,2]
[404300193,1770047441770,-500.0,0.00015297,2]
[404300194,1770047441779,-500.0,0.00015297,2]
[404300195,1770047441788,-500.0,0.00015297,2]
[404300196,1770047441800,-469.64985738,0.00015297,2]
[404300197,1770047441809,-500.0,0.00015297,2]
[404300198,1770047441818,-500.0,0.00015297,2]
[404300199,1770047441827,-500.0,0.00015297,2]
[404300200,1770047441836,-500.0,0.00015297,2]
[404300201,1770047441846,-500.0,0.00015297,2]
[404300202,1770047441855,-500.0,0.00015297,2]
[404300203,1770047441864,-500.0,0.00015297,2]
[404300204,1770047441872,-500.0,0.00015297,2]
[404300205,1770047441881,-500.0,0.00015297,2]
[404300206,1770047441890,-500.0,0.00015297,2]
[404300207,1770047441900,-500.0,0.00015297,2]
[404300208,1770047441909,-500.0,0.00015297,2]
[404300209,1770047441918,-500.0,0.00015297,2]
[404300210,1770047441927,-500.0,0.00015297,2]
[404300211,1770047442151,-500.0,0.00015297,2]
[404300212,1770047442161,-220.62335577,0.00015309,2]
[404300213,1770047442171,-500.0,0.00015309,2]
[404300214,1770047442181,-8434.15159244,0.00015405,2]
[404300215,1770047442190,-1057.6732333,0.00015442,2]
[404300216,1770047442201,-500.0,0.00015473,2]
[404300217,1770047442212,-501.68536334,0.00015473,2]
[404300218,1770047442222,-500.0,0.00015473,2]
[404300219,1770047442231,-500.0,0.00015473,2]
[404300220,1770047442240,-500.0,0.00015473,2]
[404300221,1770047442251,-500.0,0.00015473,2]
[404300222,1770047442260,-574.06272579,0.00015473,2]
[404300223,1770047442270,-500.6120606,0.00015473,2]
[404300224,1770047442279,-500.0,0.00015473,2]
[404300225,1770047442289,-500.62768041,0.00015473,2]
[404300226,1770047442301,-559.67308476,0.00015473,2]
[404300227,1770047442310,-500.0,0.00015473,2]
[404300228,1770047442319,-163.46067997,0.00015473,2]
[404300229,1770047442329,-500.0,0.00015473,2]
[404300230,1770047442338,-500.0,0.00015473,2]
[404300231,1770047442348,-500.0,0.00015473,2]
[404300232,1770047442358,-500.0,0.00015473,2]
[404300233,1770047442367,-486.90150068,0.00015473,2]
[404300234,1770047442376,-464.35211832,0.00015473,2]
[404300235,1770047442386,-151.07783782,0.00015473,2]
[404300236,1770047442395,-500.40906893,0.00015473,2]
[404300237,1770047442405,-500.0,0.00015473,2]
[404300238,1770047442414,-160.54295648,0.00015473,2]
[404300239,1770047442423,-500.0,0.00015473,2]
[404300240,1770047442432,-500.0,0.00015473,2]
[404300241,1770047442441,-500.0,0.00015473,2]
[404300242,1770047442450,-500.0,0.00015473,2]
[404300243,1770047442459,-500.0,0.00015473,2]
[404300244,1770047442469,-500.0,0.00015473,2]
[404300245,1770047442478,-500.0,0.00015473,2]
[404300246,1770047442488,-500.0,0.00015473,2]
[404300247,1770047442499,-500.0,0.00015473,2]
[404300248,1770047442508,-500.0,0.00015473,2]
[404300249,1770047442517,-500.0,0.00015473,2]
[404300250,1770047442530,-200.70028911,0.00015473,2]
[404300251,1770047442539,-500.0,0.00015473,2]
[404300252,1770047442551,-500.0,0.00015473,2]
[404300253,1770047442559,-500.0,0.00015473,2]
[404300254,1770047442569,-500.0,0.00015473,2]
[404300255,1770047442578,-500.0,0.00015473,2]
[404300256,1770047442587,-161.45537985,0.00015473,2]
[404300257,1770047442596,-336.43827265,0.00015473,2]
[404300258,1770047442605,-500.0,0.00015473,2]
[404300259,1770047442615,-500.0,0.00015473,2]
[404300260,1770047442624,-500.0,0.00015473,2]
[404300261,1770047442633,-500.0,0.00015473,2]
[404300262,1770047442642,-500.0,0.00015473,2]
[404300263,1770047442651,-500.41005015,0.00015473,2]
[404300264,1770047442660,-512.94754167,0.00015473,2]
[404300265,1770047442669,-500.0,0.00015473,2]
[404300266,1770047442678,-500.0,0.00015473,2]
[404300267,1770047442687,-185.46503654,0.00015473,2]
[404300268,1770047442697,-500.0,0.00015473,2]
[404300269,1770047442707,-565.00011393,0.00015473,2]
[404300270,1770047442717,-550.09529227,0.00015473,2]
[404300271,1770047442726,-500.0,0.00015473,2]
[404300272,1770047442735,-500.0,0.00015473,2]
[404300273,1770047442744,-500.0,0.00015473,2]
[404300274,1770047442753,-500.0,0.00015473,2]
[404300275,1770047442762,-500.0,0.00015473,2]
[404300276,1770047442771,-500.0,0.00015473,2]
[404300277,1770047442780,-500.0,0.00015473,2]
[404300278,1770047442789,-500.0,0.00015473,2]
[404300279,1770047442801,-500.0,0.00015473,2]
[404300280,1770047442810,-500.0,0.00015473,2]
[404300281,1770047442818,-500.0,0.00015473,2]
[404300282,1770047442828,-773.23,0.00015548,2]
[404300283,1770047442837,-172.53,0.00015584,2]
[404300284,1770047442846,-345.06,0.00015584,2]
[404300285,1770047442855,-172.53,0.00015584,2]
[404300286,1770047442865,-172.53,0.00015584,2]
[404300287,1770047442874,-1000.0,0.00015616,2]
[404300288,1770047442884,-1270.24622109,0.00015616,2]
[404300289,1770047442893,-579.91304629,0.00015616,2]
[404300290,1770047442903,-2000.0,0.00015616,2]
[404300291,1770047442912,-2107.21812372,0.00015616,2]
[404300292,1770047442921,-159.65843549,0.00015638,2]
[404300293,1770047442930,-500.0,0.00015644,2]
[404300294,1770047442940,-8434.15159244,0.00015663,2]
[404300295,1770047442951,-151.33,0.00015694,2]
[404300296,1770047442960,-433.0,0.00015716,2]
[404300297,1770047442969,-301.2,0.00015726,2]
[404300298,1770047442978,-150.0,0.00015726,2]
[404300299,1770047442987,-150.0,0.00015726,2]
[404300300,1770047442996,-454.76636139,0.00015737,2]
[404300301,1770047443006,-371.68774004,0.00015749,2]
[404300302,1770047443015,-1036.13001288,0.00015749,2]
[404300303,1770047443024,-773.23,0.00015822,2]
[404300304,1770047443033,-500.0,0.00015857,2]
[404300305,1770047443044,-150.0,0.0001589,2]
[404300306,1770047443053,-150.0,0.0001589,2]
[404300307,1770047443062,-2351.0,0.00015911,2]
[404300308,1770047443072,-8434.15159244,0.00015921,2]
[404300310,1770047443081,-5000.0,0.0001596,2]
[404300311,1770047443091,-200.0,0.00016,2]
[404300312,1770047443099,-269.8904873,0.00016021,2]
[404300313,1770047443109,-1000.0,0.00016021,2]
[404300316,1770047443118,-1000.0,0.00016021,2]
[404300317,1770047443128,-1000.0,0.00016021,2]
[404300318,1770047443137,-1000.0,0.00016021,2]
[404300319,1770047443146,-1000.0,0.00016021,2]
[404300320,1770047443156,-1000.0,0.00016021,2]
[404300321,1770047443166,-843.37022852,0.00016021,2]
[404300322,1770047443175,-1040.54063963,0.00016021,2]
[404300323,1770047443185,-1000.0,0.00016021,2]
[404300324,1770047443195,-1000.0,0.00016021,2]
[404300325,1770047443206,-1082.33207666,0.00016021,2]
[404300326,1770047443215,-1000.0,0.00016021,2]
[404300327,1770047443224,-1000.0,0.00016021,2]
[404300328,1770047443234,-1000.0,0.00016021,2]
[404300329,1770047443243,-501.6324076,0.00016021,2]
[404300330,1770047443255,-1000.0,0.00016021,2]
[404300331,1770047443265,-293.82457575,0.00016021,2]
[404300332,1770047443274,-1000.0,0.00016021,2]
[404300333,1770047443284,-826.63399032,0.00016021,2]
[404300334,1770047443297,-1000.0,0.00016021,2]
[404300335,1770047443307,-305.41786048,0.00016021,2]
[404300336,1770047443316,-1000.0,0.00016021,2]
[404300337,1770047443326,-885.68955508,0.00016021,2]
[404300338,1770047443335,-1000.0,0.00016021,2]
[404300339,1770047443345,-1000.0,0.00016021,2]
[404300340,1770047443354,-1000.0,0.00016021,2]
[404300341,1770047443364,-1000.0,0.00016021,2]
[404300342,1770047443373,-1000.0,0.00016021,2]
[404300343,1770047443383,-1003.32803614,0.00016021,2]
[404300344,1770047443392,-1000.0,0.00016021,2]
[404300345,1770047443402,-1000.0,0.00016021,2]
[404300346,1770047443412,-1000.0,0.00016021,2]
[404300347,1770047443421,-1000.0,0.00016021,2]
[404300348,1770047443430,-1000.0,0.00016021,2]
[404300349,1770047443440,-1000.0,0.00016021,2]
[404300350,1770047443449,-1000.0,0.00016021,2]
[404300351,1770047443459,-371.34493106,0.00016021,2]
[404300352,1770047443468,-194.71422031,0.00016021,2]
[404300353,1770047443478,-1000.0,0.00016021,2]
[404300354,1770047443487,-1000.0,0.00016021,2]
[404300355,1770047443497,-1000.0,0.00016021,2]
[404300356,1770047443506,-500.40903786,0.00016021,2]
[404300357,1770047443516,-276.99112213,0.00016035,2]
[404300358,1770047443525,-209.40437684,0.00016035,2]
[404300359,1770047443534,-859.80605061,0.00016035,2]
[404300360,1770047443545,-1428.38747117,0.00016035,2]
[404300361,1770047443554,-578.20924308,0.00016035,2]
[404300362,1770047443563,-500.0,0.00016035,2]
[404300363,1770047443574,-500.0,0.00016035,2]
[404300364,1770047443584,-500.0,0.00016035,2]
[404300365,1770047443594,-500.0,0.00016035,2]
[404300366,1770047443603,-500.0,0.00016035,2]
[404300367,1770047443612,-500.0,0.00016035,2]
[404300368,1770047443622,-500.0,0.00016035,2]
[404300369,1770047443631,-500.0,0.00016035,2]
[404300370,1770047443641,-500.0,0.00016035,2]
[404300371,1770047443650,-500.0,0.00016035,2]
[404300372,1770047443659,-250.0,0.00016035,2]
[404300373,1770047443669,-500.0,0.00016035,2]
[404300374,1770047443678,-250.0,0.00016035,2]
[404300375,1770047443687,-250.0,0.00016035,2]
[404300376,1770047443696,-250.0,0.00016035,2]
[404300377,1770047443706,-250.0,0.00016035,2]
[404300378,1770047443715,-174.61919141,0.00016035,2]
[404300379,1770047443725,-209.40437684,0.00016035,2]
[404300380,1770047443734,-721.12765535,0.00016035,2]
[404300381,1770047443743,-322.6107,0.00016035,2]
[404300382,1770047443752,-1057.6732333,0.00016056,2]
[404300383,1770047443761,-217.15233878,0.0001609,2]
[404300384,1770047443771,-773.23,0.00016096,2]
[404300385,1770047443780,-250.0,0.00016096,2]
[404300386,1770047443789,-5785.1937,0.00016099,2]
[404300387,1770047443800,-180.0,0.00016099,2]
[404300388,1770047443809,-614.13,0.00016128,2]
[404300389,1770047443818,-225.18697532,0.00016145,2]
[404300390,1770047443827,-381.0,0.0001619,2]
[404300391,1770047443837,-500.0,0.00016199,2]
[404300392,1770047443846,-233.51889341,0.000162,2]
[404300393,1770047443855,-381.0,0.00016235,2]
[404300394,1770047443864,-242.15909246,0.00016255,2]
[404300395,1770047443874,-381.0,0.00016273,2]
[404300396,1770047443883,-159.65843549,0.0001629,2]
[404300397,1770047443892,-251.11897888,0.0001631,2]
[404300398,1770047443902,-381.0,0.00016318,2]
[404300399,1770047443911,-381.0,0.00016345,2]
[404300400,1770047443920,-260.4103811,0.00016365,2]
[404300401,1770047443930,-773.23,0.0001637,2]
[404300402,1770047443939,-150.0,0.00016404,2]
[404300403,1770047443948,-150.0,0.00016404,2]
[404300404,1770047443958,-150.0,0.00016404,2]
[404300405,1770047443967,-150.0,0.00016404,2]
[404300406,1770047443977,-150.0,0.00016404,2]
[404300407,1770047443986,-500.0,0.00016405,2]
[404300408,1770047443995,-345.02,0.00016406,2]
[404300409,1770047444004,-329.59,0.00016406,2]
[404300410,1770047444013,-180.29,0.00016411,2]
[404300411,1770047444022,-180.29,0.00016411,2]
[404300412,1770047444031,-270.0455652,0.0001642,2]
[404300413,1770047444041,-381.0,0.00016427,2]
[404300415,1770047444051,-1000.0,0.00016437,2]
[404300416,1770047444061,-500.0,0.00016438,2]
[404300418,1770047444070,-500.0,0.00016438,2]
[404300420,1770047444079,-500.0,0.00016438,2]
[404300422,1770047444089,-500.0,0.00016438,2]
[404300424,1770047444099,-372.61344896,0.00016438,2]
[404300425,1770047444108,-500.0,0.00016438,2]
[404300427,1770047444117,-500.0,0.00016438,2]
[404300429,1770047444126,-500.0,0.00016438,2]
[404300431,1770047444136,-500.0,0.00016438,2]
[404300433,1770047444145,-2000.0,0.00016438,2]
[404300435,1770047444155,-900.0,0.00016438,2]
[404300436,1770047444165,-1000.0,0.00016438,2]
[404300438,1770047444174,-180.29,0.00016438,2]
[404300439,1770047444183,-374.66,0.00016438,2]
[404300441,1770047444192,-454.76636139,0.00016458,2]
[404300443,1770047444203,-200.02287089,0.00016461,2]
[404300444,1770047444213,-500.0,0.00016473,2]
[404300446,1770047444223,-150.0,0.00016473,2]
[404300448,1770047444232,-300.0,0.00016473,2]
[404300449,1770047444241,-280.03725112,0.00016475,2]
[404300451,1770047444251,-172.53,0.00016478,2]
[404300452,1770047444260,-180.29,0.00016478,2]
[404300454,1770047444269,-150.0,0.00016508,2]
[404300455,1770047444280,-500.0,0.00016508,2]
[404300457,1770047444290,-500.0,0.00016508,2]
[404300458,1770047444300,-150.0,0.00016508,2]
[404300459,1770047444309,-4212.0,0.00016508,2]
[404300460,1770047444318,-150.0,0.00016508,2]
[404300461,1770047444328,-500.0,0.00016508,2]
[404300462,1770047444336,-150.0,0.00016508,2]
[404300463,1770047444345,-500.0,0.00016508,2]
[404300464,1770047444355,-266.13840863,0.00016508,2]
[404300465,1770047444364,-500.0,0.00016508,2]
[404300466,1770047444373,-500.0,0.00016508,2]
[404300467,1770047444382,-150.0,0.00016508,2]
[404300468,1770047444391,-166.6864064,0.00016518,2]
[404300469,1770047444399,-151.33,0.0001652,2]
[404300470,1770047444408,-290.39862941,0.0001653,2]
[404300471,1770047444417,-274.75743456,0.00016539,2]
[404300472,1770047444426,-150.0,0.00016548,2]
[404300473,1770047444435,-166.03286464,0.00016563,2]
[404300474,1770047444445,-500.0,0.00016563,2]
[404300475,1770047444454,-500.0,0.00016563,2]
[404300476,1770047444463,-266.97590661,0.00016563,2]
[404300477,1770047444472,-4212.0,0.00016563,2]
[404300478,1770047444481,-150.0,0.00016563,2]
[404300479,1770047444490,-500.0,0.00016563,2]
[404300480,1770047444499,-150.0,0.00016563,2]
[404300481,1770047444509,-500.0,0.00016563,2]
[404300482,1770047444518,-500.0,0.00016563,2]
[404300483,1770047444527,-500.0,0.00016563,2]
[404300484,1770047444537,-150.0,0.00016563,2]
[404300485,1770047444547,-329.74128292,0.00016565,2]
[404300486,1770047444556,-500.0,0.00016567,2]
[404300487,1770047444566,-509.63945804,0.00016567,2]
[404300488,1770047444575,-1001.04497332,0.00016568,2]
[404300489,1770047444584,-500.0,0.00016568,2]
[404300490,1770047444593,-503.70343212,0.00016568,2]
[404300491,1770047444602,-487.41342802,0.00016568,2]
[404300492,1770047444611,-764.91033221,0.00016568,2]
[404300493,1770047444620,-1501.43163729,0.00016568,2]
[404300494,1770047444629,-1000.0,0.00016568,2]
[404300495,1770047444639,-287.5401961,0.00016568,2]
[404300496,1770047444649,-1500.0,0.00016568,2]
[404300497,1770047444658,-1000.0,0.00016568,2]
[404300498,1770047444667,-1000.0,0.00016568,2]
[404300499,1770047444676,-1000.0,0.00016568,2]
[404300500,1770047444685,-1500.0,0.00016568,2]
[404300501,1770047444694,-537.98113052,0.00016568,2]
[404300502,1770047444703,-1001.51663727,0.00016568,2]
[404300503,1770047444711,-1500.0,0.00016568,2]
[404300504,1770047444721,-1500.0,0.00016568,2]
[404300505,1770047444731,-500.0,0.00016568,2]
[404300506,1770047444740,-1003.30357537,0.00016568,2]
[404300507,1770047444749,-500.0,0.00016568,2]
[404300508,1770047444758,-408.63714551,0.00016568,2]
[404300509,1770047444769,-500.0,0.00016568,2]
[404300510,1770047444778,-1003.56470175,0.00016568,2]
[404300511,1770047444787,-500.0,0.00016568,2]
[404300512,1770047444797,-217.15233878,0.00016583,2]
[404300513,1770047444806,-1481.23780761,0.00016583,2]
[404300514,1770047444815,-277.94807481,0.00016583,2]
[404300515,1770047444824,-181.08010149,0.00016583,2]
[404300516,1770047444833,-301.1433787,0.00016585,2]
[404300517,1770047444842,-500.0,0.00016603,2]
[404300518,1770047444851,-500.0,0.00016618,2]
[404300519,1770047444860,-500.0,0.00016618,2]
[404300520,1770047444869,-4212.0,0.00016618,2]
[404300521,1770047444878,-150.0,0.00016618,2]
[404300522,1770047444888,-500.0,0.00016618,2]
[404300523,1770047444897,-282.97813088,0.00016618,2]
[404300524,1770047444907,-500.0,0.00016618,2]
[404300525,1770047444916,-206.36581695,0.00016618,2]
[404300526,1770047444926,-500.0,0.00016618,2]
[404300527,1770047444935,-207.91969894,0.00016618,2]
[404300528,1770047444944,-381.0,0.00016638,2]
[404300529,1770047444953,-456.738324,0.00016656,2]
[404300530,1770047444963,-810.96,0.00016657,2]
[404300531,1770047444972,-810.96,0.00016657,2]
[404300532,1770047444981,-810.96,0.00016657,2]
[404300533,1770047444990,-810.96,0.00016657,2]
[404300534,1770047444999,-810.97314617,0.00016657,2]
[404300535,1770047445009,-300.06,0.00016657,2]
[404300536,1770047445018,-1057.6732333,0.00016671,2]
[404300537,1770047445027,-500.0,0.00016672,2]
[404300538,1770047445035,-500.0,0.00016672,2]
[404300539,1770047445045,-4212.0,0.00016672,2]
[404300540,1770047445054,-150.0,0.00016672,2]
[404300541,1770047445063,-500.0,0.00016672,2]
[404300542,1770047445073,-500.0,0.00016672,2]
[404300543,1770047445082,-500.0,0.00016672,2]
[404300544,1770047445092,-1000.0,0.00016712,2]
[404300545,1770047445101,-150.0,0.00016712,2]
[404300546,1770047445110,-500.0,0.00016727,2]
[404300547,1770047445119,-527.83357046,0.00016727,2]
[404300548,1770047445128,-4212.0,0.00016727,2]
[404300549,1770047445137,-150.0,0.00016727,2]
[404300550,1770047445147,-500.0,0.00016727,2]
[404300551,1770047445156,-381.0,0.00016758,2]
[404300552,1770047445166,-196.73,0.00016764,2]
[404300553,1770047445177,-500.0,0.00016782,2]
[404300554,1770047445187,-4212.0,0.00016782,2]
[404300555,1770047445197,-500.0,0.00016782,2]
[404300556,1770047445209,-1500.0,0.000168,2]
[404300557,1770047445219,-371.68774004,0.00016825,2]
[404300558,1770047445229,-500.0,0.00016837,2]
[404300559,1770047445239,-4212.0,0.00016837,2]
[404300560,1770047445250,-381.0,0.0001684,2]
[404300561,1770047445259,-381.0,0.00016841,2]
[404300562,1770047445269,-381.0,0.00016867,2]
[404300563,1770047445281,-381.0,0.00016871,2]
[404300564,1770047445290,-500.0,0.00016892,2]
[404300565,1770047445305,-4212.0,0.00016892,2]
[404300566,1770047445315,-151.0,0.00016921,2]
[404300567,1770047445325,-247955.2517766,0.00016924,2]
[404300568,1770047445334,-7810.1944891,0.00016924,2]
[404300570,1770047445343,-67608.9099787,0.00016924,2]
[404300571,1770047445353,-180413.1624113,0.00016924,2]
[404300572,1770047445362,-2782.7487086,0.00016924,2]
[404300573,1770047445371,-12831.0532041,0.00016924,2]
[404300574,1770047445381,-381.0,0.00016934,2]
[404300575,1770047445390,-159.65843549,0.00016941,2]
[404300576,1770047445399,-150.0,0.00016946,2]
[404300577,1770047445408,-4212.0,0.00016946,2]
[404300578,1770047445418,-500.0,0.00016953,2]
[404300579,1770047445427,-381.0,0.00016958,2]
[404300580,1770047445436,-381.0,0.00016963,2]
[404300581,1770047445445,-1600.0,0.00016975,2]
[404300582,1770047445454,-200.0,0.00016983,2]
[404300583,1770047445464,-223.71282357,0.00016983,2]
[404300584,1770047445473,-212.0,0.00016986,2]
[404300585,1770047445483,-1000.0,0.00016986,2]
[404300586,1770047445492,-291.1100727,0.0001699,2]
[404300587,1770047445502,-500.0,0.00016999,2]
[404300588,1770047445511,-500.0,0.00016999,2]
[404300589,1770047445520,-60630.93069271,0.00017,2]
[404300590,1770047445539,-17294.19999999,0.00017,2]
[404300591,1770047445689,-4273.67723231,0.00017,2]
[404300592,1770047445700,-792.4699999,0.00017,2]
[404300593,1770047445712,-353419.83552239,0.00017,2]
[404300594,1770047445722,-300.0,0.00017,2]
[404300595,1770047445732,-1284.16393121,0.00017,2]
[404300596,1770047445742,-200.0,0.00017,2]
[404300597,1770047445751,-200.0,0.00017,2]
[404300598,1770047445760,-163.404548,0.00017,2]
[404300599,1770047445770,-151.0,0.00017,2]
[404300600,1770047445780,-151.0,0.00017,2]
[404300601,1770047445789,-151.0,0.00017,2]
[404300602,1770047445802,-200.0,0.00017,2]
[404300603,1770047445811,-1503.0,0.00017,2]
[404300604,1770047445820,-1503.0,0.00017,2]
[404300605,1770047445830,-1503.0,0.00017,2]
[404300606,1770047445839,-1503.0,0.00017,2]
[404300607,1770047445848,-1503.0,0.00017,2]
[404300608,1770047445857,-1503.0,0.00017,2]
[404300609,1770047445867,-155.468766,0.00017,2]
[404300610,1770047445876,-151.0,0.00017,2]
[404300611,1770047445885,-1503.0,0.00017,2]
[404300612,1770047445895,-151.0,0.00017,2]
[404300613,1770047445904,-1503.0,0.00017,2]
[404300614,1770047445913,-1503.0,0.00017,2]
[404300615,1770047445923,-151.0,0.00017,2]
[404300616,1770047445932,-1503.0,0.00017,2]
[404300617,1770047445941,-151.0,0.00017,2]
[404300618,1770047445950,-1503.0,0.00017,2]
[404300619,1770047445959,-151.0,0.00017,2]
[404300620,1770047445969,-1503.0,0.00017,2]
[404300621,1770047445979,-151.0,0.00017,2]
[404300622,1770047445988,-151.0,0.00017,2]
[404300623,1770047445998,-1503.0,0.00017,2]
[404300624,1770047446007,-1503.0,0.00017,2]
[404300625,1770047446016,-1503.0,0.00017,2]
[404300626,1770047446026,-1503.0,0.00017,2]
[404300627,1770047446035,-1503.0,0.00017,2]
[404300628,1770047446048,-151.0,0.00017,2]
[404300629,1770047446249,-1503.0,0.00017,2]
[404300630,1770047446260,-1503.0,0.00017,2]
[404300631,1770047446270,-1503.0,0.00017,2]
[404300632,1770047446281,-1503.0,0.00017,2]
[404300633,1770047446291,-1503.0,0.00017,2]
[404300634,1770047446306,-151.0,0.00017,2]
[404300635,1770047446316,-1503.0,0.00017,2]
[404300637,1770047446326,-151.0,0.00017,2]
[404300638,1770047446336,-151.0,0.00017,2]
[404300639,1770047446345,-151.0,0.00017,2]
[404300640,1770047446357,-151.0,0.00017,2]
[404300641,1770047446367,-151.0,0.00017,2]
[404300642,1770047446377,-151.0,0.00017,2]
[404300643,1770047446386,-151.0,0.00017,2]
[404300644,1770047446396,-151.0,0.00017,2]
[404300645,1770047446406,-151.0,0.00017,2]
[404300647,1770047446416,-151.0,0.00017,2]
[404300649,1770047446426,-151.0,0.00017,2]
[404300650,1770047446435,-151.0,0.00017,2]
[404300651,1770047446445,-151.0,0.00017,2]
[404300652,1770047446455,-151.0,0.00017,2]
[404300654,1770047446464,-151.0,0.00017,2]
[404300656,1770047446474,-151.0,0.00017,2]
[404300658,1770047446483,-151.0,0.00017,2]
[404300659,1770047446493,-448.149135,0.00017,2]
[404300660,1770047446502,-448.149135,0.00017,2]
[404300661,1770047446512,-448.149135,0.00017,2]
[404300662,1770047446521,-448.149135,0.00017,2]
[404300663,1770047446531,-151.0,0.00017,2]
[404300664,1770047446541,-163.698799,0.00017,2]
[404300665,1770047446552,-151.0,0.00017,2]
[404300666,1770047446562,-152.959758,0.00017,2]
[404300667,1770047446571,-151.0,0.00017,2]
[404300668,1770047446580,-151.0,0.00017,2]
[404300669,1770047446590,-403.258585,0.00017,2]
[404300670,1770047446599,-151.0,0.00017,2]
[404300671,1770047446609,-403.258585,0.00017,2]
[404300672,1770047446618,-151.0,0.00017,2]
[404300673,1770047446628,-403.258585,0.00017,2]
[404300674,1770047446638,-151.0,0.00017,2]
[404300675,1770047446647,-403.258585,0.00017,2]
[404300676,1770047446657,-519.076251,0.00017,2]
[404300677,1770047446670,-1884.52943065,0.00017,2]
[404300678,1770047446680,-519.076251,0.00017,2]
[404300679,1770047446690,-519.076251,0.00017,2]
[404300680,1770047446700,-519.076251,0.00017,2]
[404300681,1770047446710,-200.0,0.00017,2]
[404300682,1770047446720,-413.94526043,0.00017,2]
[404300683,1770047446730,-4212.0,0.00017001,2]
[404300684,1770047446740,-500.0,0.00017002,2]
[404300685,1770047446750,-736.0,0.00017015,2]
[404300686,1770047446760,-522.8234433,0.00017021,2]
[404300687,1770047446770,-300.0,0.00017021,2]